Cogmind - Beta 10.2 @@@ ROGUE MODE // 2020.10.31 @ 17:45:56 Player: PhenomPhear Result: Destroyed by 8R-AWN with 8R-AWN's Boregun Performance ------------- Evolutions (1) 500 Regions Visited (5) 1000 Robots Destroyed (47) 235 Value Destroyed (855) 855 Prototype IDs (2) 40 Alien Tech Used (0) 0 Bonus (-87) -87 TOTAL SCORE: 2543 Bonus ------- Friendly Fire -87 Cogmind --------- Core Integrity 0/400 Matter 149/300 Energy 99/100 System Corruption 0% Temperature Cool (0) Movement Core (350) Ox6 Location -9/Exiles Parts ------- > --- POWER (1) -------- (None) > --- PROPULSION (2) --- (None) > --- UTILITY (4) ------ Large Storage Unit > --- WEAPON (2) ------- Improved Assault Rifle > --- INVENTORY (10) --- Heavy Ion Engine Light Treads Large Matter Pod (150) Improved Assault Rifle Improved Assault Rifle Improved Assault Rifle Mini Grenade Launcher Plasma Cutter Peak State ------------ > --- POWER ------------ Heavy Ion Engine > --- PROPULSION ------- Light Treads Light Treads > --- UTILITY ---------- Medium Storage Unit Large Storage Unit Light Armor Plating Light Armor Plating > --- WEAPON ----------- Improved Assault Rifle Improved Assault Rifle > --- INVENTORY -------- Heavy Ion Engine Fission Core Fission Core Light Treads Large Matter Pod Light Armor Plating Light Armor Plating Improved Assault Rifle Improved Assault Rifle Improved Assault Rifle Mini Grenade Launcher Plasma Cutter [Rating: 18] Favorites ----------- Power Heavy Ion Engine Engine Heavy Ion Engine Propulsion Light Treads Treads Light Treads Utility Light Armor Plating Device Improved Heat Sink Storage Small Storage Unit Processor Visual Processing Unit Protection Light Armor Plating Weapon Improved Assault Rifle Energy Gun Medium Laser Ballistic Gun Improved Assault Rifle Launcher Mini Grenade Launcher Special Weapon Plasma Cutter Build | -11 -10 -10 -9 -9 -9 ------- Run | Scr Mat Min Mat Min Exi Slots Evolved 2 | . . . 2 . . Power . | . . . . . . Propulsion . | . . . . . . Utility 2 | . . . 2 . . Weapon . | . . . . . . Parts Attached 43 | 6 3 . 23 2 9 Power 4 | 1 . . 3 . . Engine 4 | 1 . . 3 . . Core . | . . . . . . Reactor . | . . . . . . Propulsion 8 | 2 . . 6 . . Treads 8 | 2 . . 6 . . Leg . | . . . . . . Wheel . | . . . . . . Hover . | . . . . . . Flight . | . . . . . . Utility 13 | 1 1 . 8 . 3 Device 1 | . 1 . . . . Storage 4 | 1 . . 2 . 1 Processor 1 | . . . 1 . . Hackware . | . . . . . . Protection 7 | . . . 5 . 2 Artifact . | . . . . . . Weapon 18 | 2 2 . 6 2 6 Energy Gun 1 | 1 . . . . . Energy Cannon . | . . . . . . Ballistic Gun 12 | 1 2 . 6 1 2 Ballistic Cannon . | . . . . . . Launcher 2 | . . . . 1 1 Special Weapon 3 | . . . . . 3 Impact Weapon . | . . . . . . Slashing Weapon . | . . . . . . Piercing Weapon . | . . . . . . Special Melee Weapon . | . . . . . . Unidentified Prototypes 2 | . . . 2 . . Parts Lost 11 | . 1 . 2 . 8 Power 1 | . . . . . 1 Propulsion 2 | . . . . . 2 Utility 5 | . . . 1 . 4 Weapon 3 | . 1 . 1 . 1 Highest Loss Streak 8 | . 1 . 1 . 8 Average Slot Usage (%) 94 | . 90 100 92 100 94 Engine 11 | . 14 14 11 11 10 Treads 22 | . 28 28 22 22 20 Device 2 | . 7 14 1 . . Storage 19 | . 14 14 19 22 20 Processor 2 | . . . 5 . . Protection 12 | . . . 10 22 21 Ballistic Gun 21 | . 19 28 22 20 21 Naked Turns . | . . . . . . Heaviest Build 44 | 12 12 12 32 32 44 Greatest Support 40 | 40 40 40 40 40 40 Greatest Overweight (x) 1 | . . . . . 1 Average Overweight (x) . | . . . . . . Largest Inventory Capacity 14 | 6 6 6 10 10 14 Average Capacity 9 | 5 6 6 9 10 12 Most Carried 13 | . 2 4 10 10 13 Average Carried 7 | . . 2 8 10 10 Final Capacity 10 | 6 6 6 10 10 10 Final Carried 10 | . 2 4 10 10 8 Class Distribution -------------------- 73% | Scavenger-Mutant 26% | Mutant Dominant Class ---------------- Mutant | -10/Materials Mutant | -10/Mines Scavenger-Mutant | -9/Materials Scavenger-Mutant | -9/Mines Scavenger-Mutant | -9/Exiles Resources | -11 -10 -10 -9 -9 -9 ----------- Run | Scr Mat Min Mat Min Exi Matter Collected 1217 | 226 90 17 834 . 50 Remotely . | . . . . . . Salvage Created 1652 | . 210 48 1380 . 14 Parts 101 | . 15 4 82 . . Haulers Intercepted 4 | . . . 4 . . Recyclers Shooed 3 | . . . 3 . . Parts Field Recycled . | . . . . . . Retrieved Matter . | . . . . . . Parts Self-Destructed . | . . . . . . Prevented . | . . . . . . Kills | -11 -10 -10 -9 -9 -9 ------- Run | Scr Mat Min Mat Min Exi Combat Hostiles Destroyed 36 | . 6 3 20 . 7 Guns 29 | . 6 3 20 . . AOE 7 | . . . . . 7 Classes Destroyed 9 | . 2 . 6 . 1 Worker 2 | . . . 2 . . Hauler 4 | . . . 4 . . Recycler 4 | . . . 4 . . Watcher 1 | . . . 1 . . Swarmer 11 | . 2 3 6 . . Grunt 12 | . 4 . 8 . . Brawler 1 | . . . 1 . . Sentry 5 | . . . 5 . . Assembled 7 | . . . . . 7 Best Kill Streak 7 | . 2 3 5 . 7 Combat Bots Only 7 | . 2 3 3 . 7 Max Kills in Single Turn 4 | . 1 1 1 . 4 Gunslinging . | . . . . . . Exploded 4 | . . . . . 4 Melee . | . . . . . . Uniques/NPCs Destroyed . | . . . . . . Combat | -11 -10 -10 -9 -9 -9 -------- Run | Scr Mat Min Mat Min Exi Damage Taken 2534 | . 255 123 1028 . 1128 Core 460 | . 39 8 188 . 225 Absorbed by Shields . | . . . . . . Core Remaining (%) 90 | 100 . 81 . . . Volleys Fired 164 | . 31 7 96 3 27 Largest 2 | . 2 2 2 1 2 Hottest 70 | . 70 40 46 30 46 Shots Fired 296 | . 53 14 191 3 35 Gun 285 | . 53 14 191 . 27 Cannon . | . . . . . . Launcher 5 | . . . . 3 2 Special 6 | . . . . . 6 Kinetic 268 | . 36 14 191 . 27 Thermal 23 | . 17 . . . 6 Explosive 5 | . . . . 3 2 Electromagnetic . | . . . . . . Robot Hit Streak 20 | . 10 5 15 . 20 Robot Miss Streak 3 | . 2 1 3 . 2 Penetration Max . | . . . . . . Secondary Targets 6 | . . . 6 . . Max Gunslinging Chain 1 | . . . 1 . . Shots Hit Robots 213 | . 39 12 133 . 29 Core Hits 95 | . 16 5 56 . 18 Critical Hits 1 | . . . . . 1 Critical Kills . | . . . . . . Critical Parts Destroyed . | . . . . . . Melee Attacks . | . . . . . . Impact . | . . . . . . Slashing . | . . . . . . Piercing . | . . . . . . Sneak Attacks . | . . . . . . Combat Hostiles . | . . . . . . Follow-up Attacks . | . . . . . . Damage Inflicted 2798 | . 319 86 1603 . 790 Guns 2403 | . 319 86 1603 . 395 Cannons . | . . . . . . Explosions 391 | . . . . . 391 Melee . | . . . . . . Ramming . | . . . . . . Kinetic 2288 | . 204 86 1603 . 395 Thermal 119 | . 115 . . . 4 Explosive 391 | . . . . . 391 Electromagnetic . | . . . . . . Impact . | . . . . . . Slashing . | . . . . . . Piercing . | . . . . . . Highest Corruption . | . . . . . . Average Corruption . | . . . . . . Corruption Purged . | . . . . . . Overload Shots . | . . . . . . Overflow Damage . | . . . . . . Projectiles . | . . . . . . Explosions . | . . . . . . Melee . | . . . . . . Knockbacks . | . . . . . . Impact . | . . . . . . Kinetic . | . . . . . . Secondary . | . . . . . . Self-Inflicted Damage 85 | . . . . . 85 Shots 2 | . . . . . 2 Rammed 1 | . 1 . . . . Targets Rammed 1 | . 1 . . . . Kicked . | . . . . . . Crushed . | . . . . . . Highest Temperature 198 | . 198 . 64 . 13 Average Temperature 42 | . 82 . 20 . 4 Received Heat Transfer 491 | . 93 . 378 . 20 Siege Activations . | . . . . . . Robots Corrupted . | . . . . . . Combat Hostiles . | . . . . . . Parts Fried . | . . . . . . Impact Corruptions . | . . . . . . Robots Melted . | . . . . . . Combat Hostiles . | . . . . . . Parts Melted . | . . . . . . Heat Transferred 369 | . 333 . . . 36 Parts Sabotaged . | . . . . . . Parts Stolen . | . . . . . . Parts Stripped . | . . . . . . Power Chain Reactions . | . . . . . . Missiles Intercepted . | . . . . . . Alert | -11 -10 -10 -9 -9 -9 ------- Run | Scr Mat Min Mat Min Exi Peak Influence 410 | . 200 148 410 130 . Initial 130 | . . 78 57 130 . Average 208 | . 100 113 263 130 . Maximum Alert Level 2 | . 1 . 2 . . Low Security (%) 47 | 100 72 100 26 100 . Level 1 48 | . 27 . 67 . . Level 2 3 | . . . 5 . . Level 3 . | . . . . . . Level 4 . | . . . . . . Level 5 . | . . . . . . High Security . | . . . . . . Max Security . | . . . . . . Squads Dispatched 4 | . 3 . 1 . . Investigation 1 | . 1 . . . . Extermination . | . . . . . . Reinforcement 3 | . 2 . 1 . . Assault . | . . . . . . Garrison . | . . . . . . Intercept . | . . . . . . Construction Impeded . | . . . . . . Haulers Reinforced . | . . . . . . Stealth | -11 -10 -10 -9 -9 -9 --------- Run | Scr Mat Min Mat Min Exi Distress Signals 6 | . 1 . 5 . . Communications Jammed . | . . . . . . Distress Signals . | . . . . . . Times Spotted 69 | . 15 3 43 . 8 Peak Tracking Total 9 | . 4 3 5 . 9 Tactical Retreats 3 | . 1 . 2 . . Traps | -11 -10 -10 -9 -9 -9 ------- Run | Scr Mat Min Mat Min Exi Traps Triggered 3 | . 1 . 2 . . Indirectly . | . . . . . . Trap Hack Attempts . | . . . . . . Triggered . | . . . . . . Disarmed . | . . . . . . Reprogrammed . | . . . . . . Reused . | . . . . . . Traps Extracted . | . . . . . . Installed . | . . . . . . Triggered . | . . . . . . Machines | -11 -10 -10 -9 -9 -9 ---------- Run | Scr Mat Min Mat Min Exi Machines Disabled 2 | . . . . . 2 Max in Single Turn 1 | . . . . . 1 Machines Sabotaged . | . . . . . . Garrisons Compromised . | . . . . . . Overloaded Fab Kills . | . . . . . . Fab Network Shutdowns . | . . . . . . Hacking | -11 -10 -10 -9 -9 -9 --------- Run | Scr Mat Min Mat Min Exi Machines Accessed 2 | . 1 . 1 . . Terminals 1 | . 1 . . . . Fabricators . | . . . . . . Repair Stations . | . . . . . . Recycling Units 1 | . . . 1 . . Scanalyzers . | . . . . . . Garrison Access . | . . . . . . Total Hacks 4 | . 2 . 2 . . Successful 2 | . . . 2 . . Failed 2 | . 2 . . . . Catastrophic 2 | . 2 . . . . Database Lockouts . | . . . . . . Manual 3 | . 2 . 1 . . Terminals 2 | . 2 . . . . Fabricators . | . . . . . . Repair Stations . | . . . . . . Recycling Units 2 | . . . 2 . . Scanalyzers . | . . . . . . Garrison Access . | . . . . . . Terminal Hacks . | . . . . . . Fabricator Hacks . | . . . . . . Repair Station Hacks . | . . . . . . Recycling Unit Hacks 1 | . . . 1 . . Retrieve Components 1 | . . . 1 . . Scanalyzer . | . . . . . . Garrison Access Hacks . | . . . . . . Unauthorized Hacks 1 | . . . 1 . . Terminals . | . . . . . . Fabricators . | . . . . . . Repair Stations . | . . . . . . Recycling Units 1 | . . . 1 . . Reject 1 | . . . 1 . . Scanalyzers . | . . . . . . Garrison Access . | . . . . . . Data Cores Recovered . | . . . . . . Used . | . . . . . . Hacking Detections 2 | . 1 . 1 . . Full Trace Events 1 | . 1 . . . . Feedback Events . | . . . . . . Feedback Blocked . | . . . . . . Robot Schematics Acquired . | . . . . . . Robots Built . | . . . . . . Matter . | . . . . . . Time . | . . . . . . Total Robot Build Rating . | . . . . . . Part Schematics Acquired . | . . . . . . Parts Built . | . . . . . . Matter . | . . . . . . Time . | . . . . . . Total Part Build Rating . | . . . . . . Parts Repaired . | . . . . . . Time . | . . . . . . Parts Recycled . | . . . . . . Recycled Matter . | . . . . . . Retrieved Matter . | . . . . . . Retrieved Components 9 | . . . 9 . . Parts Scanalyzed . | . . . . . . Part Schematics Acquired . | . . . . . . Parts Damaged . | . . . . . . Bothacking | -11 -10 -10 -9 -9 -9 ------------ Run | Scr Mat Min Mat Min Exi Used RIF Installer . | . . . . . . Robots Hacked . | . . . . . . Non-combat . | . . . . . . Combat . | . . . . . . Robot Hacks Applied . | . . . . . . Relay Couplers Released . | . . . . . . Robots Rewired . | . . . . . . Allies Hacked . | . . . . . . Hacks Repelled . | . . . . . . Allies | -11 -10 -10 -9 -9 -9 -------- Run | Scr Mat Min Mat Min Exi Total Allies . | . . . . . . Largest Group . | . . . . . . Highest-Rated Group . | . . . . . . Highest-Rated Ally . | . . . . . . Total Orders . | . . . . . . Ally Attacks . | . . . . . . Total Damage . | . . . . . . Kills . | . . . . . . Allies Corrupted . | . . . . . . Allies Melted . | . . . . . . Intel | -11 -10 -10 -9 -9 -9 ------- Run | Scr Mat Min Mat Min Exi Robot Analysis Total . | . . . . . . Derelict Logs Recovered . | . . . . . . Drone Launches . | . . . . . . Drone Recoveries . | . . . . . . Exploration | -11 -10 -10 -9 -9 -9 ------------- Run | Scr Mat Min Mat Min Exi Turns Passed 2690 | 75 270 129 1399 245 572 Spaces Moved 1252 | 45 108 68 603 148 280 Core 4 | 4 . . . . . Treads 1248 | 41 108 68 603 148 280 Legs . | . . . . . . Wheels . | . . . . . . Hover . | . . . . . . Flight . | . . . . . . Fastest Speed 50 | 50 160 160 160 160 160 Average Speed 162 | 150 160 160 160 160 174 Slowest Speed 180 | 160 160 160 160 160 180 Overloaded Moves . | . . . . . . Propulsion Burnouts . | . . . . . . Robots Hopped . | . . . . . . Cave-ins Triggered . | . . . . . . Exploration Rate (%) 31 | 5 31 17 46 46 45 Regions Visited 5 Branch Regions 3 Pre-discovered Areas . | . . . . . . Known Exits Taken . | . . . . . . Unknown Exits Taken 5 | 1 1 1 1 1 . Scrap Searched 1 | . . 1 . . . Spaces Dug 10 | . . . . 10 . Terrain Destroyed 52 | . . . . 34 18 Melee . | . . . . . . Projectile . | . . . . . . AOE 52 | . . . . 34 18 Terrain Rammed . | . . . . . . Walls Destroyed . | . . . . . . Machines Disabled . | . . . . . . Actions | -11 -10 -10 -9 -9 -9 --------- Run | Scr Mat Min Mat Min Exi Total 1646 | 50 157 77 886 152 324 Wait 147 | . 14 1 132 . . Move 1247 | 44 107 67 602 147 280 Hop . | . . . . . . Pick Up 17 | . 1 2 11 . 3 Fast Attach 14 | 6 2 . 6 . . Attach 2 | . . . . . 2 Detach . | . . . . . . Swap 27 | . 1 . 17 2 7 Drop 27 | . . . 22 . 5 Fire 164 | . 31 7 96 3 27 Melee . | . . . . . . Ram . | . . . . . . Kick . | . . . . . . Crush 1 | . 1 . . . . Escape Stasis . | . . . . . . Rewire . | . . . . . . Trap . | . . . . . . Miscellaneous . | . . . . . . Route ------- -11/Scrapyard -10/Materials -10/Mines -9/Materials (discovered 3 exits: [*Mat x2] / [*Min]) -9/Mines (discovered 2 exits: [*Exi] / [*Zio]) -9/Exiles History --------- Turn | Location | Event 45 | -11/Scrapyard | Discovered new exit (range 16) 76 | -11/Scrapyard | Entered Materials 316 | -10/Materials | Build established: Mutant 321 | -10/Materials | Discovered new exit (range 9) 346 | -10/Materials | Entered Mines 470 | -10/Mines | Discovered new exit (range 4) 475 | -10/Mines | Entered Materials 475 | -9/Materials | Evolved 2 slots: Utility x2 932 | -9/Materials | Discovered new exit (range 18) 1052 | -9/Materials | Build established: Scavenger-Mutant 1480 | -9/Materials | Discovered new exit (range 3) 1689 | -9/Materials | Discovered new exit (range 9) 1874 | -9/Materials | Entered Mines 1926 | -9/Mines | A weapon hastily lodged in a ceiling crevice suddenly fell to the ground 1932 | -9/Mines | Met a Derelict bent on vengeance 1968 | -9/Mines | A Derelict revealed a hidden shortcut to a safe place 2074 | -9/Mines | Deemed a non-threat by the Exiles lab entrance 2074 | -9/Mines | Discovered new exit (range 7) 2119 | -9/Mines | Entered Exiles 2164 | -9/Exiles | Met 8R-AWN 2183 | -9/Exiles | Met EX-HEX 2289 | -9/Exiles | Met EX-DEC 2619 | -9/Exiles | Attacked by the Exiles 2622 | -9/Exiles | Core integrity fell below 50% 2656 | -9/Exiles | Destroyed 7 combat bots 2675 | -9/Exiles | Core integrity fell below 20% 2691 | -9/Exiles | Destroyed by 8R-AWN with 8R-AWN's Boregun Last Messages --------------- 02653_ Lgt. Treads destroyed. 02655_ Penetrated by HV Slug. 02657_ Critical hit. 02657_ Hvy. Ion Engine destroyed. 02659_ Penetrated by HV Slug. 02659_ Critical hit. 02662_ Penetrated by HV Slug. 02662_ Critical hit. 02662_ Penetrated by HV Slug. 02666_ Critical hit. 02666_ Penetrated by HV Slug. 02670_ Critical hit. 02670_ Imp. Assault Rifle destroyed. 02670_ Penetrated by HV Slug. 02674_ Lgt. Armor Plating destroyed. 02679_ Penetrated by HV Slug. 02683_ Destroyed Prototype Protection. 02683_ Penetrated by HV Slug. 02687_ HV Slug penetrates Earth. 02691_ Penetrated by HV Slug. Map ----- +----------------------------------------------------+ | ?????????????????????????????????????????????????? | | ?????????????????????????????????????????????????? | | ?????????????????????????????????????????????????? | | ?????????????????????????????????????????????????? | | ?????????????????????????????????????????????????? | | ?????????????????????????????????????????????????? | | ?????????????????????????????????????????????????? | | ?????????????????????????????????????????????????? | | ?????????????????????????????????????????????????? | | ?????????????????????????????????????????????????? | | ????????????????????????? ???????????????????????? | | ????????????????????????? ???????????????????????? | | ????????????????????????? ???????????????????????? | | ????????????????????????? ???????????????????????? | | ????????????????????????? ???????????????????????? | | ????????????????????????? ???????????????????????? | | ????????????????????????? ???????????????????????? | | ????????????????????????# #??????????????????????? | | ????????????????????????# #??????????????????????? | | ????????????????????????# #??????????????????? ?? | | ?"???"??????????????????# ###????????????????? | | " """ """???????????????# # #????????????????# # | | "" " ??????????#### #??????????????## # | | " """??????????# ##?????????????# | | " "#?????????# # #?????????????# | | " "##?????????# @ #????????????## | | ""###???????# !g% #???????????## #? | | """#??????# # #???????????# #? | | "#????### ##????????### #?? | | ##???# ########## #?? | | ##?## #""""## #??? | | ### ##?? | | ## #?? | | #### ##? | | ""#?#"""""#### ## | | #"""##?#######??#### | | ######??????????????##### | | ##???????????????????????### | | " ##??????????????????????????### | | """* * * ""#?????????????????????????????### | | ""#" "##??????????????????????????????#" | | """##"""""""##???????????????????????????????#### | | """###########???????????????????????????????????# | | ####?????????????????????????????????????????????# | | ?????????????????????????????????????????????????? | | ?????????????????????????????????????????????????? | | ?????????????????????????????????????????????????? | | ?????????????????????????????????????????????????? | | ?????????????????????????????????????????????????? | | ?????????????????????????????????????????????????? | +----------------------------------------------------+ Best States ------------- Heat Dissipation 42 Energy Generation 14 Energy Capacity 280 Matter Stores 300 Matter Capacity 300 Sight Range 18 Terrain Scan Density 10 Armor Coverage 450 Evasion (%) 40 Recoil Reduction 2 Item Schematics ----------------- None Robot Schematics ------------------ None Fabricated ------------ Nothing Alien Tech Used ----------------- None Achievements -------------- None Challenges ------------ None Game ------ Seed grenademodifiedprocessor Manual? 1 Play Time 00:16:46 Cumulative 1071.6 hours Start 2020.10.31 @ 17:31:31 End 2020.10.31 @ 17:45:56 Sessions 1 Manual Loads 0 Difficulty Rogue Special Mode None Game No. 664 Rogue 664 Adventurer 0 Explorer 0 Win Type - Total 18 Types 10/1/4/3/0/0/0/0/0 Lore% 90 Gallery% 93 Achievement% 81 Wizard Run 0 Options --------- ASCII 0 Keyboard 0 Movement Mouse Keybinds 0 Fullscreen 2 Font 24/Smallcaps Map View 76x50 Tactical HUD 1 Map Filters NONE Filters NONE Steam 1 RUN: bcab010d-bc3b-4034-b0d3-f4f66c83f52f